[Event "Titled Tuesday Blitz May 9 Early 2023"]
[White "koncheto"]
[Black "rionelG"]
[WhiteElo "2457"]
[BlackElo "2203"]
[Result "1-0"]
[Round "06"]
[TimeControl "180+2"]
[Date "2023.05.09"]
[WhiteClock "0:00:11"]
[BlackClock "0:00:00"]

1. e4 {[%clk 0:02:58]}  c5 {[%clk 0:02:29]} 2. Nf3 {[%clk 0:02:38]}  d6 {[%clk 0:02:29]} 3. d4 {[%clk 0:02:34]}  cxd4 {[%clk 0:02:30]} 4. Nxd4 {[%clk 0:02:34]}  Nf6 {[%clk 0:02:29]} 5. f3 {[%clk 0:02:35]}  e5 {[%clk 0:02:27]} 6. Nb3 {[%clk 0:02:30]}  d5 {[%clk 0:02:10]} 7. Bg5 {[%clk 0:02:30]}  Be6 {[%clk 0:01:55]} 8. Bxf6 {[%clk 0:02:27]}  gxf6 {[%clk 0:01:54]} 9. exd5 {[%clk 0:02:26]}  Qxd5 {[%clk 0:01:54]} 10. Qxd5 {[%clk 0:02:27]}  Bxd5 {[%clk 0:01:55]} 11. Nc3 {[%clk 0:02:28]}  Be6 {[%clk 0:01:54]} 12. O-O-O {[%clk 0:02:28]}  Nc6 {[%clk 0:01:54]} 13. Bb5 {[%clk 0:02:05]}  Rc8 {[%clk 0:01:52]} 14. Na5 {[%clk 0:02:02]}  a6 {[%clk 0:01:48]} 15. Bxc6+ {[%clk 0:01:44]}  bxc6 {[%clk 0:01:46]} 16. Ne4 {[%clk 0:01:37]}  Bb4 {[%clk 0:01:34]} 17. Nd6+ {[%clk 0:01:32]}  Ke7 {[%clk 0:01:18]} 18. Nxc8+ {[%clk 0:01:30]}  Rxc8 {[%clk 0:01:19]} 19. Nb3 {[%clk 0:01:27]}  c5 {[%clk 0:01:12]} 20. c3 {[%clk 0:01:22]}  c4 {[%clk 0:01:10]} 21. Nd2 {[%clk 0:01:14]}  Bc5 {[%clk 0:01:05]} 22. Rhe1 {[%clk 0:01:14]}  a5 {[%clk 0:00:58]} 23. Ne4 {[%clk 0:01:04]}  Ba7 {[%clk 0:00:47]} 24. Kc2 {[%clk 0:00:58]}  h6 {[%clk 0:00:42]} 25. Rd2 {[%clk 0:00:54]}  f5 {[%clk 0:00:42]} 26. Ng3 {[%clk 0:00:51]}  f4 {[%clk 0:00:37]} 27. Ne4 {[%clk 0:00:50]}  Be3 {[%clk 0:00:37]} 28. Rdd1 {[%clk 0:00:45]}  Bf5 {[%clk 0:00:37]} 29. Rd5 {[%clk 0:00:38]}  Bxe4+ {[%clk 0:00:09]} 30. fxe4 {[%clk 0:00:29]}  f6 {[%clk 0:00:07]} 31. Rxa5 {[%clk 0:00:28]}  Rg8 {[%clk 0:00:08]} 32. Re2 {[%clk 0:00:23]}  Kd6 {[%clk 0:00:07]} 33. b3 {[%clk 0:00:18]}  cxb3+ {[%clk 0:00:06]} 34. axb3 {[%clk 0:00:19]}  Rc8 {[%clk 0:00:06]} 35. b4 {[%clk 0:00:18]}  Bd4 {[%clk 0:00:06]} 36. Ra3 {[%clk 0:00:17]}  h5 {[%clk 0:00:04]} 37. Kd3 {[%clk 0:00:16]}  Bb6 {[%clk 0:00:04]} 38. Ra6 {[%clk 0:00:15]}  Kc7 {[%clk 0:00:04]} 39. Rea2 {[%clk 0:00:13]}  Kb7 {[%clk 0:00:04]} 40. c4 {[%clk 0:00:12]}  Bg1 {[%clk 0:00:03]} 41. h3 {[%clk 0:00:11]}  Rd8+ {[%clk 0:00:03]} 42. Kc3 {[%clk 0:00:11]}  Rd1 {[%clk 0:00:03]} 43. c5 {[%clk 0:00:10]}  Bd4+ {[%clk 0:00:00]} 44. Kc4 {[%clk 0:00:11]} 1-0


[Site "https://www.chess.com"]

[Event "Titled Tuesday Blitz May 9 Early 2023"]
[White "Shukhman, Anna"]
[Black "Floresvillar Gonzalez, Luis Migu"]
[WhiteFideId "54180058"]
[BlackFideId "5100542"]
[WhiteElo "2235"]
[BlackElo "2040"]
[Result "1-0"]
[Round "06"]
[TimeControl "180+2"]
[Date "2023.05.09"]
[WhiteClock "0:02:17"]
[BlackClock "0:00:11"]

1. e4 {[%clk 0:03:00]}  d6 {[%clk 0:02:56]} 2. d4 {[%clk 0:03:00]}  Nf6 {[%clk 0:02:54]} 3. Nc3 {[%clk 0:03:00]}  g6 {[%clk 0:02:49]} 4. f4 {[%clk 0:03:00]}  Bg7 {[%clk 0:02:49]} 5. Nf3 {[%clk 0:03:00]}  Bg4 {[%clk 0:02:44]} 6. h3 {[%clk 0:02:56]}  Bxf3 {[%clk 0:02:43]} 7. Qxf3 {[%clk 0:02:57]}  Nc6 {[%clk 0:02:42]} 8. Be3 {[%clk 0:02:56]}  e5 {[%clk 0:02:42]} 9. dxe5 {[%clk 0:02:54]}  dxe5 {[%clk 0:02:42]} 10. Rd1 {[%clk 0:02:55]}  Qe7 {[%clk 0:02:40]} 11. Bb5 {[%clk 0:02:54]}  O-O {[%clk 0:02:37]} 12. Bxc6 {[%clk 0:02:53]}  bxc6 {[%clk 0:02:36]} 13. O-O {[%clk 0:02:52]}  Rab8 {[%clk 0:02:34]} 14. fxe5 {[%clk 0:02:50]}  Qxe5 {[%clk 0:02:29]} 15. Bd4 {[%clk 0:02:50]}  Qh5 {[%clk 0:02:04]} 16. Bxf6 {[%clk 0:02:48]}  Bxf6 {[%clk 0:02:04]} 17. Qxf6 {[%clk 0:02:47]}  Rxb2 {[%clk 0:02:04]} 18. Nd5 {[%clk 0:02:46]}  cxd5 {[%clk 0:01:45]} 19. Qxb2 {[%clk 0:02:44]}  dxe4 {[%clk 0:01:43]} 20. Qf6 {[%clk 0:02:42]}  Qc5+ {[%clk 0:01:40]} 21. Kh1 {[%clk 0:02:42]}  Qxc2 {[%clk 0:01:39]} 22. Rd8 {[%clk 0:02:41]}  Qxa2 {[%clk 0:01:35]} 23. Rxf8+ {[%clk 0:02:38]}  Kxf8 {[%clk 0:01:34]} 24. Qh8+ {[%clk 0:02:37]}  Ke7 {[%clk 0:01:34]} 25. Qe5+ {[%clk 0:02:38]}  Kf8 {[%clk 0:01:32]} 26. Qxe4 {[%clk 0:02:34]}  h5 {[%clk 0:01:25]} 27. Qe5 {[%clk 0:02:32]}  Kg8 {[%clk 0:01:16]} 28. Rd1 {[%clk 0:02:30]}  Kh7 {[%clk 0:01:05]} 29. Rd8 {[%clk 0:02:27]}  Qa1+ {[%clk 0:00:11]} 30. Qxa1 {[%clk 0:02:17]} 1-0


[Site "https://www.chess.com"]

[Event "Titled Tuesday Blitz May 9 Early 2023"]
[White "Tarnowska, Aleksandra"]
[Black "Pasti, Aron"]
[WhiteFideId "1180967"]
[BlackFideId "785857"]
[WhiteElo "1776"]
[BlackElo "2173"]
[Result "1-0"]
[Round "06"]
[TimeControl "180+2"]
[Date "2023.05.09"]
[WhiteClock "0:00:08"]
[BlackClock "0:00:00"]

1. e4 {[%clk 0:03:00]}  c5 {[%clk 0:02:55]} 2. Nf3 {[%clk 0:03:00]}  e6 {[%clk 0:02:52]} 3. c3 {[%clk 0:03:00]}  d5 {[%clk 0:02:50]} 4. exd5 {[%clk 0:03:00]}  Qxd5 {[%clk 0:02:51]} 5. d4 {[%clk 0:03:00]}  Nc6 {[%clk 0:02:51]} 6. Be3 {[%clk 0:02:54]}  cxd4 {[%clk 0:02:48]} 7. cxd4 {[%clk 0:02:54]}  Bb4+ {[%clk 0:02:48]} 8. Nc3 {[%clk 0:02:51]}  Qa5 {[%clk 0:02:48]} 9. Qc1 {[%clk 0:02:38]}  Nf6 {[%clk 0:02:45]} 10. a3 {[%clk 0:02:38]}  Be7 {[%clk 0:02:34]} 11. b4 {[%clk 0:02:20]}  Qd8 {[%clk 0:02:29]} 12. Bd3 {[%clk 0:01:40]}  Ng4 {[%clk 0:02:16]} 13. O-O {[%clk 0:01:35]}  Bf6 {[%clk 0:02:14]} 14. Bb5 {[%clk 0:01:24]}  O-O {[%clk 0:01:31]} 15. Bxc6 {[%clk 0:01:22]}  bxc6 {[%clk 0:01:26]} 16. Ne4 {[%clk 0:01:23]}  Ba6 {[%clk 0:01:14]} 17. Re1 {[%clk 0:01:02]}  Rc8 {[%clk 0:01:02]} 18. Nxf6+ {[%clk 0:00:54]}  Qxf6 {[%clk 0:01:00]} 19. Bg5 {[%clk 0:00:51]}  Qg6 {[%clk 0:00:58]} 20. Nh4 {[%clk 0:00:42]}  Qd3 {[%clk 0:00:37]} 21. h3 {[%clk 0:00:41]}  Nf6 {[%clk 0:00:37]} 22. Bxf6 {[%clk 0:00:22]}  gxf6 {[%clk 0:00:38]} 23. Qf4 {[%clk 0:00:22]}  h5 {[%clk 0:00:03]} 24. Re3 {[%clk 0:00:17]}  Qh7 {[%clk 0:00:01]} 25. Rg3+ {[%clk 0:00:16]}  Qg7 {[%clk 0:00:01]} 26. Qxf6 {[%clk 0:00:16]}  Qxg3 {[%clk 0:00:01]} 27. fxg3 {[%clk 0:00:16]}  Rcd8 {[%clk 0:00:01]} 28. Re1 {[%clk 0:00:15]}  Rd5 {[%clk 0:00:01]} 29. Re5 {[%clk 0:00:14]}  Rfd8 {[%clk 0:00:01]} 30. Nf3 {[%clk 0:00:08]}  Rxd4 {[%clk 0:00:00]} 31. Nxd4 {[%clk 0:00:08]} 1-0


[Site "https://www.chess.com"]

[Event "Titled Tuesday Blitz May 9 Early 2023"]
[White "Parizek, Vojtech"]
[Black "Feinig, Mario"]
[WhiteFideId "360996"]
[BlackFideId "1618113"]
[WhiteElo "2115"]
[BlackElo "2163"]
[Result "0-1"]
[Round "06"]
[TimeControl "180+2"]
[Date "2023.05.09"]
[WhiteClock "0:00:28"]
[BlackClock "0:01:51"]

1. e4 {[%clk 0:03:00]}  d6 {[%clk 0:02:58]} 2. d4 {[%clk 0:02:59]}  Nf6 {[%clk 0:02:57]} 3. Nc3 {[%clk 0:03:00]}  e5 {[%clk 0:02:56]} 4. Nf3 {[%clk 0:02:58]}  Nbd7 {[%clk 0:02:54]} 5. g4 {[%clk 0:02:58]}  Nxg4 {[%clk 0:02:51]} 6. Rg1 {[%clk 0:02:58]}  Ngf6 {[%clk 0:02:49]} 7. Bc4 {[%clk 0:02:58]}  exd4 {[%clk 0:02:39]} 8. Qxd4 {[%clk 0:02:50]}  h6 {[%clk 0:02:25]} 9. Be3 {[%clk 0:02:45]}  g6 {[%clk 0:02:24]} 10. O-O-O {[%clk 0:02:41]}  Bg7 {[%clk 0:02:24]} 11. Qd2 {[%clk 0:02:38]}  Qe7 {[%clk 0:02:20]} 12. Bd4 {[%clk 0:02:18]}  Ne5 {[%clk 0:02:11]} 13. Nxe5 {[%clk 0:02:13]}  dxe5 {[%clk 0:02:12]} 14. Bxe5 {[%clk 0:02:12]}  Be6 {[%clk 0:02:07]} 15. Bxe6 {[%clk 0:02:09]}  Qxe6 {[%clk 0:02:08]} 16. Bxc7 {[%clk 0:02:08]}  O-O {[%clk 0:02:08]} 17. Qe3 {[%clk 0:01:52]}  Rfc8 {[%clk 0:02:04]} 18. Bd6 {[%clk 0:01:44]}  Rxc3 {[%clk 0:01:55]} 19. Qxc3 {[%clk 0:01:39]}  Qxa2 {[%clk 0:01:53]} 20. b3 {[%clk 0:00:28]}  Nxe4 {[%clk 0:01:51]} 0-1


[Site "https://www.chess.com"]

[Event "Titled Tuesday Blitz May 9 Early 2023"]
[White "Llanos, Guillermo"]
[Black "Levine, David"]
[WhiteFideId "100358"]
[BlackFideId "2011611"]
[WhiteElo "2225"]
[BlackElo "2126"]
[Result "1-0"]
[Round "06"]
[TimeControl "180+2"]
[Date "2023.05.09"]
[WhiteClock "0:00:28"]
[BlackClock "0:00:00"]

1. Nf3 {[%clk 0:03:00]}  d5 {[%clk 0:02:58]} 2. g3 {[%clk 0:03:01]}  Nf6 {[%clk 0:02:56]} 3. Bg2 {[%clk 0:03:01]}  e6 {[%clk 0:02:56]} 4. d3 {[%clk 0:02:59]}  Be7 {[%clk 0:02:55]} 5. O-O {[%clk 0:02:59]}  b6 {[%clk 0:02:55]} 6. c4 {[%clk 0:02:58]}  Bb7 {[%clk 0:02:54]} 7. cxd5 {[%clk 0:02:55]}  exd5 {[%clk 0:02:53]} 8. d4 {[%clk 0:02:46]}  O-O {[%clk 0:02:52]} 9. Nc3 {[%clk 0:02:46]}  c5 {[%clk 0:02:51]} 10. Bg5 {[%clk 0:02:42]}  Nbd7 {[%clk 0:02:50]} 11. e3 {[%clk 0:02:40]}  h6 {[%clk 0:02:49]} 12. Bxf6 {[%clk 0:02:37]}  Nxf6 {[%clk 0:02:49]} 13. Rc1 {[%clk 0:02:31]}  Re8 {[%clk 0:02:30]} 14. dxc5 {[%clk 0:02:20]}  bxc5 {[%clk 0:02:30]} 15. Qa4 {[%clk 0:02:13]}  Qb6 {[%clk 0:02:24]} 16. Qb5 {[%clk 0:01:58]}  Bc6 {[%clk 0:02:13]} 17. Qxb6 {[%clk 0:01:51]}  axb6 {[%clk 0:02:06]} 18. Rfd1 {[%clk 0:01:49]}  Red8 {[%clk 0:01:55]} 19. Ne5 {[%clk 0:01:48]}  Bb7 {[%clk 0:01:47]} 20. a3 {[%clk 0:01:45]}  Bd6 {[%clk 0:01:44]} 21. Nd3 {[%clk 0:01:44]}  Bc6 {[%clk 0:01:28]} 22. Nf4 {[%clk 0:01:43]}  Bxf4 {[%clk 0:01:27]} 23. gxf4 {[%clk 0:01:43]}  Kf8 {[%clk 0:01:15]} 24. Rd2 {[%clk 0:01:43]}  Ke7 {[%clk 0:01:14]} 25. Rcd1 {[%clk 0:01:43]}  Ke6 {[%clk 0:01:14]} 26. Nxd5 {[%clk 0:01:03]}  Bxd5 {[%clk 0:01:09]} 27. e4 {[%clk 0:01:02]}  c4 {[%clk 0:00:31]} 28. exd5+ {[%clk 0:01:00]}  Kf5 {[%clk 0:00:30]} 29. Rd4 {[%clk 0:00:56]}  c3 {[%clk 0:00:29]} 30. bxc3 {[%clk 0:00:53]}  Rxa3 {[%clk 0:00:26]} 31. c4 {[%clk 0:00:51]}  Rd6 {[%clk 0:00:15]} 32. Re1 {[%clk 0:00:49]}  Rc3 {[%clk 0:00:10]} 33. h3 {[%clk 0:00:37]}  h5 {[%clk 0:00:09]} 34. Re7 {[%clk 0:00:36]}  h4 {[%clk 0:00:08]} 35. Rxf7 {[%clk 0:00:34]}  Kg6 {[%clk 0:00:05]} 36. Re7 {[%clk 0:00:33]}  Nh5 {[%clk 0:00:00]} 37. Re5 {[%clk 0:00:28]} 1-0


[Site "https://www.chess.com"]

[Event "Titled Tuesday Blitz May 9 Early 2023"]
[White "Brueckner, Thomas"]
[Black "Aung Thant Zin"]
[WhiteFideId "4600452"]
[BlackFideId "13000063"]
[WhiteElo "2322"]
[BlackElo "2278"]
[Result "1/2-1/2"]
[Round "06"]
[TimeControl "180+2"]
[Date "2023.05.09"]
[WhiteClock "0:00:50"]
[BlackClock "0:01:00"]

1. Nf3 {[%clk 0:03:00]}  d5 {[%clk 0:02:59]} 2. g3 {[%clk 0:03:00]}  Nf6 {[%clk 0:02:59]} 3. Bg2 {[%clk 0:03:00]}  e6 {[%clk 0:02:59]} 4. c4 {[%clk 0:02:58]}  Be7 {[%clk 0:02:59]} 5. O-O {[%clk 0:02:57]}  O-O {[%clk 0:02:59]} 6. b3 {[%clk 0:02:58]}  c5 {[%clk 0:02:59]} 7. e3 {[%clk 0:02:57]}  Nc6 {[%clk 0:02:59]} 8. cxd5 {[%clk 0:02:57]}  Nxd5 {[%clk 0:02:58]} 9. Bb2 {[%clk 0:02:55]}  Bf6 {[%clk 0:02:58]} 10. d4 {[%clk 0:02:55]}  b6 {[%clk 0:02:55]} 11. e4 {[%clk 0:02:36]}  Nc7 {[%clk 0:02:54]} 12. e5 {[%clk 0:02:36]}  Be7 {[%clk 0:02:53]} 13. Qc2 {[%clk 0:02:08]}  Ba6 {[%clk 0:02:51]} 14. Rd1 {[%clk 0:02:06]}  Nb4 {[%clk 0:02:40]} 15. Qe4 {[%clk 0:02:03]}  Qd5 {[%clk 0:02:19]} 16. Nc3 {[%clk 0:02:01]}  Qxe4 {[%clk 0:02:18]} 17. Nxe4 {[%clk 0:02:02]}  Be2 {[%clk 0:01:53]} 18. Rd2 {[%clk 0:02:00]}  Bxf3 {[%clk 0:01:49]} 19. Bxf3 {[%clk 0:02:00]}  cxd4 {[%clk 0:01:44]} 20. Bxd4 {[%clk 0:01:22]}  Rad8 {[%clk 0:01:37]} 21. Rad1 {[%clk 0:01:20]}  Nbd5 {[%clk 0:01:25]} 22. Nd6 {[%clk 0:01:06]}  Bxd6 {[%clk 0:01:19]} 23. exd6 {[%clk 0:01:07]}  Rxd6 {[%clk 0:01:13]} 24. Be5 {[%clk 0:01:06]}  Rd7 {[%clk 0:01:13]} 25. Bxc7 {[%clk 0:01:06]}  Rxc7 {[%clk 0:01:12]} 26. Bxd5 {[%clk 0:01:06]}  exd5 {[%clk 0:01:11]} 27. Rxd5 {[%clk 0:01:07]}  g6 {[%clk 0:01:11]} 28. Rd7 {[%clk 0:01:06]}  Rfc8 {[%clk 0:01:10]} 29. R1d2 {[%clk 0:01:05]}  Kg7 {[%clk 0:01:09]} 30. Kg2 {[%clk 0:01:05]}  a5 {[%clk 0:01:05]} 31. h4 {[%clk 0:01:00]}  Rxd7 {[%clk 0:01:04]} 32. Rxd7 {[%clk 0:00:59]}  Rc2 {[%clk 0:01:04]} 33. Rb7 {[%clk 0:00:56]}  Rxa2 {[%clk 0:01:05]} 34. Rxb6 {[%clk 0:00:56]}  Rb2 {[%clk 0:01:03]} 35. Rb5 {[%clk 0:00:53]}  Kf6 {[%clk 0:01:01]} 36. Rxa5 {[%clk 0:00:50]}  Rxb3 {[%clk 0:01:00]} 1/2-1/2


[Site "https://www.chess.com"]

[Event "Titled Tuesday Blitz May 9 Early 2023"]
[White "Vaglio Munoz, Jaime"]
[Black "Castillo Pena, Patricia Evarista"]
[WhiteFideId "6500145"]
[BlackFideId "6412106"]
[WhiteElo "2199"]
[BlackElo "1919"]
[Result "1-0"]
[Round "06"]
[TimeControl "180+2"]
[Date "2023.05.09"]
[WhiteClock "0:00:53"]
[BlackClock "0:00:00"]

1. Nf3 {[%clk 0:03:00]}  d5 {[%clk 0:02:49]} 2. b3 {[%clk 0:02:58]}  c5 {[%clk 0:02:47]} 3. e3 {[%clk 0:02:56]}  Nf6 {[%clk 0:02:46]} 4. Ne5 {[%clk 0:02:54]}  e6 {[%clk 0:02:39]} 5. Bb2 {[%clk 0:02:52]}  Bd6 {[%clk 0:02:39]} 6. f4 {[%clk 0:02:50]}  O-O {[%clk 0:02:38]} 7. Bd3 {[%clk 0:02:50]}  Nc6 {[%clk 0:02:35]} 8. O-O {[%clk 0:02:50]}  Qe7 {[%clk 0:02:34]} 9. Qe1 {[%clk 0:02:44]}  Rd8 {[%clk 0:02:09]} 10. a3 {[%clk 0:02:41]}  Ne4 {[%clk 0:01:54]} 11. Bxe4 {[%clk 0:02:16]}  dxe4 {[%clk 0:01:54]} 12. Nxc6 {[%clk 0:02:14]}  bxc6 {[%clk 0:01:53]} 13. Qg3 {[%clk 0:02:13]}  f6 {[%clk 0:01:33]} 14. Nc3 {[%clk 0:02:11]}  e5 {[%clk 0:01:22]} 15. f5 {[%clk 0:02:03]}  Ba6 {[%clk 0:01:04]} 16. Rf2 {[%clk 0:02:02]}  c4 {[%clk 0:01:02]} 17. b4 {[%clk 0:01:59]}  c5 {[%clk 0:00:59]} 18. b5 {[%clk 0:01:58]}  Bb7 {[%clk 0:00:59]} 19. a4 {[%clk 0:01:56]}  Rd7 {[%clk 0:00:54]} 20. a5 {[%clk 0:01:55]}  Rad8 {[%clk 0:00:51]} 21. Qg4 {[%clk 0:01:50]}  Bb8 {[%clk 0:00:48]} 22. Bc1 {[%clk 0:01:48]}  Qf7 {[%clk 0:00:38]} 23. h4 {[%clk 0:01:46]}  Rd6 {[%clk 0:00:25]} 24. h5 {[%clk 0:01:44]}  h6 {[%clk 0:00:25]} 25. Kh2 {[%clk 0:01:41]}  R8d7 {[%clk 0:00:23]} 26. Kh3 {[%clk 0:01:34]}  Qe8 {[%clk 0:00:21]} 27. Kh4 {[%clk 0:01:34]}  Bc7 {[%clk 0:00:19]} 28. Nxe4 {[%clk 0:01:26]}  Bxe4 {[%clk 0:00:17]} 29. Qxe4 {[%clk 0:01:27]}  Kh7 {[%clk 0:00:13]} 30. Qxc4 {[%clk 0:01:25]}  Rd4+ {[%clk 0:00:11]} 31. exd4 {[%clk 0:01:22]}  Rxd4+ {[%clk 0:00:12]} 32. Qxd4 {[%clk 0:01:22]}  exd4 {[%clk 0:00:13]} 33. d3 {[%clk 0:01:20]}  Qe5 {[%clk 0:00:12]} 34. Bf4 {[%clk 0:01:18]}  Qe7 {[%clk 0:00:09]} 35. Bxc7 {[%clk 0:01:13]}  Qxc7 {[%clk 0:00:10]} 36. b6 {[%clk 0:01:12]}  Qh2+ {[%clk 0:00:10]} 37. Kg4 {[%clk 0:01:11]}  axb6 {[%clk 0:00:09]} 38. a6 {[%clk 0:01:10]}  Qe5 {[%clk 0:00:08]} 39. a7 {[%clk 0:01:08]}  Qe3 {[%clk 0:00:06]} 40. Rf4 {[%clk 0:01:03]}  Qe2+ {[%clk 0:00:04]} 41. Kg3 {[%clk 0:01:01]}  Qe3+ {[%clk 0:00:04]} 42. Rf3 {[%clk 0:01:00]}  Qg5+ {[%clk 0:00:04]} 43. Kh2 {[%clk 0:00:59]}  Qxh5+ {[%clk 0:00:04]} 44. Rh3 {[%clk 0:00:59]}  Qg5 {[%clk 0:00:03]} 45. a8=Q {[%clk 0:00:57]}  Qf4+ {[%clk 0:00:04]} 46. Rg3 {[%clk 0:00:57]}  Qh4+ {[%clk 0:00:03]} 47. Rh3 {[%clk 0:00:57]}  Qf4+ {[%clk 0:00:03]} 48. Kh1 {[%clk 0:00:57]}  Qd2 {[%clk 0:00:00]} 49. Qe8 {[%clk 0:00:53]} 1-0


[Site "https://www.chess.com"]

[Event "Titled Tuesday Blitz May 9 Early 2023"]
[White "Abrosimov, Vladimir"]
[Black "Sanchez, Robert"]
[WhiteFideId "4166892"]
[BlackFideId "2034360"]
[WhiteElo "2336"]
[BlackElo "1864"]
[Result "1-0"]
[Round "06"]
[TimeControl "180+2"]
[Date "2023.05.09"]
[WhiteClock "0:00:19"]
[BlackClock "0:00:00"]

1. c4 {[%clk 0:03:00]}  e6 {[%clk 0:02:47]} 2. Nc3 {[%clk 0:03:00]}  d5 {[%clk 0:02:47]} 3. cxd5 {[%clk 0:03:01]}  exd5 {[%clk 0:02:47]} 4. d4 {[%clk 0:03:02]}  Nf6 {[%clk 0:02:48]} 5. Nf3 {[%clk 0:03:02]}  c6 {[%clk 0:02:48]} 6. Bg5 {[%clk 0:03:02]}  Be7 {[%clk 0:02:48]} 7. e3 {[%clk 0:03:02]}  a5 {[%clk 0:02:48]} 8. Bd3 {[%clk 0:03:03]}  Na6 {[%clk 0:02:48]} 9. O-O {[%clk 0:03:01]}  Bg4 {[%clk 0:02:47]} 10. a3 {[%clk 0:02:59]}  O-O {[%clk 0:02:45]} 11. h3 {[%clk 0:02:59]}  Bh5 {[%clk 0:02:45]} 12. Qc2 {[%clk 0:02:58]}  Bxf3 {[%clk 0:02:41]} 13. gxf3 {[%clk 0:02:59]}  h6 {[%clk 0:02:41]} 14. Bf4 {[%clk 0:02:57]}  Nh5 {[%clk 0:02:38]} 15. Be5 {[%clk 0:02:52]}  Bd6 {[%clk 0:02:33]} 16. f4 {[%clk 0:02:31]}  Be7 {[%clk 0:02:00]} 17. f5 {[%clk 0:02:26]}  Bd6 {[%clk 0:01:57]} 18. Kh1 {[%clk 0:02:25]}  Bxe5 {[%clk 0:01:52]} 19. dxe5 {[%clk 0:02:25]}  Qh4 {[%clk 0:01:52]} 20. Kh2 {[%clk 0:02:21]}  Rfe8 {[%clk 0:01:48]} 21. Bxa6 {[%clk 0:01:57]}  Rxa6 {[%clk 0:01:39]} 22. e6 {[%clk 0:01:56]}  fxe6 {[%clk 0:01:38]} 23. fxe6 {[%clk 0:01:56]}  Rxe6 {[%clk 0:01:36]} 24. Rg1 {[%clk 0:01:56]}  Rf6 {[%clk 0:01:10]} 25. Rg2 {[%clk 0:01:55]}  Ra8 {[%clk 0:01:06]} 26. Rag1 {[%clk 0:01:54]}  Raf8 {[%clk 0:01:03]} 27. f4 {[%clk 0:01:49]}  Rf5 {[%clk 0:00:48]} 28. Ne2 {[%clk 0:01:44]}  Qe7 {[%clk 0:00:43]} 29. Nd4 {[%clk 0:01:39]}  R5f7 {[%clk 0:00:37]} 30. Qg6 {[%clk 0:01:32]}  Qxe3 {[%clk 0:00:35]} 31. Qxh5 {[%clk 0:00:57]}  Qxf4+ {[%clk 0:00:31]} 32. Kh1 {[%clk 0:00:56]}  Qxd4 {[%clk 0:00:30]} 33. Qxh6 {[%clk 0:00:56]}  Qe5 {[%clk 0:00:17]} 34. b3 {[%clk 0:00:49]}  d4 {[%clk 0:00:17]} 35. Qd2 {[%clk 0:00:47]}  c5 {[%clk 0:00:17]} 36. Qd3 {[%clk 0:00:47]}  Rf3 {[%clk 0:00:13]} 37. Rxg7+ {[%clk 0:00:34]}  Qxg7 {[%clk 0:00:14]} 38. Rxg7+ {[%clk 0:00:34]}  Kxg7 {[%clk 0:00:15]} 39. Qb5 {[%clk 0:00:32]}  d3 {[%clk 0:00:13]} 40. Qxb7+ {[%clk 0:00:31]}  R8f7 {[%clk 0:00:13]} 41. Qd5 {[%clk 0:00:29]}  Rf1+ {[%clk 0:00:06]} 42. Kg2 {[%clk 0:00:26]}  R1f2+ {[%clk 0:00:06]} 43. Kg1 {[%clk 0:00:25]}  d2 {[%clk 0:00:06]} 44. Qg5+ {[%clk 0:00:22]}  Kh7 {[%clk 0:00:02]} 45. Qh5+ {[%clk 0:00:20]}  Kg8 {[%clk 0:00:00]} 46. Qg5+ {[%clk 0:00:19]} 1-0


[Site "https://www.chess.com"]

[Event "Titled Tuesday Blitz May 9 Early 2023"]
[White "Tsyhanchuk, Stanislav"]
[Black "Panico, Nick"]
[WhiteFideId "13505130"]
[BlackFideId "2026724"]
[WhiteElo "2173"]
[BlackElo "1982"]
[Result "1-0"]
[Round "06"]
[TimeControl "180+2"]
[Date "2023.05.09"]
[WhiteClock "0:02:11"]
[BlackClock "0:01:19"]

1. c4 {[%clk 0:03:00]}  f5 {[%clk 0:02:56]} 2. Nc3 {[%clk 0:03:00]}  Nf6 {[%clk 0:02:55]} 3. d4 {[%clk 0:03:00]}  d6 {[%clk 0:02:53]} 4. g3 {[%clk 0:03:01]}  g6 {[%clk 0:02:53]} 5. Bg2 {[%clk 0:03:01]}  Bg7 {[%clk 0:02:54]} 6. e3 {[%clk 0:03:01]}  O-O {[%clk 0:02:53]} 7. Nge2 {[%clk 0:03:01]}  c6 {[%clk 0:02:47]} 8. O-O {[%clk 0:03:00]}  Qe8 {[%clk 0:02:48]} 9. d5 {[%clk 0:02:58]}  Bd7 {[%clk 0:02:47]} 10. b3 {[%clk 0:02:55]}  Na6 {[%clk 0:02:46]} 11. Bb2 {[%clk 0:02:55]}  Nc7 {[%clk 0:02:47]} 12. Qc2 {[%clk 0:02:53]}  Rc8 {[%clk 0:02:46]} 13. Qd2 {[%clk 0:02:52]}  Ng4 {[%clk 0:02:27]} 14. Rac1 {[%clk 0:02:46]}  c5 {[%clk 0:02:25]} 15. h3 {[%clk 0:02:41]}  Ne5 {[%clk 0:02:24]} 16. f4 {[%clk 0:02:41]}  Nf7 {[%clk 0:02:24]} 17. e4 {[%clk 0:02:41]}  a6 {[%clk 0:02:23]} 18. a4 {[%clk 0:02:39]}  Rb8 {[%clk 0:02:22]} 19. exf5 {[%clk 0:02:25]}  Bxf5 {[%clk 0:02:21]} 20. Ne4 {[%clk 0:02:23]}  Bxb2 {[%clk 0:02:16]} 21. Qxb2 {[%clk 0:02:24]}  b5 {[%clk 0:02:16]} 22. cxb5 {[%clk 0:02:20]}  axb5 {[%clk 0:02:17]} 23. a5 {[%clk 0:02:20]}  Nxd5 {[%clk 0:02:04]} 24. Nxd6 {[%clk 0:02:17]}  exd6 {[%clk 0:02:01]} 25. Bxd5 {[%clk 0:02:17]}  Be4 {[%clk 0:01:54]} 26. Nc3 {[%clk 0:02:13]}  Bxd5 {[%clk 0:01:50]} 27. Nxd5 {[%clk 0:02:14]}  Nh6 {[%clk 0:01:26]} 28. Rfe1 {[%clk 0:02:12]}  Qf7 {[%clk 0:01:19]} 29. Ne7+ {[%clk 0:02:11]} 1-0


[Site "https://www.chess.com"]

[Event "Titled Tuesday Blitz May 9 Early 2023"]
[White "Nastase, Robert-Paul"]
[Black "KorolDimitriy75"]
[WhiteFideId "1221175"]
[WhiteElo "2175"]
[BlackElo "2436"]
[Result "0-1"]
[Round "06"]
[TimeControl "180+2"]
[Date "2023.05.09"]
[WhiteClock "0:00:00"]
[BlackClock "0:00:03"]

1. e4 {[%clk 0:02:54]}  c5 {[%clk 0:03:00]} 2. Nc3 {[%clk 0:02:54]}  g6 {[%clk 0:02:59]} 3. d4 {[%clk 0:02:53]}  cxd4 {[%clk 0:02:59]} 4. Qxd4 {[%clk 0:02:53]}  Nf6 {[%clk 0:02:58]} 5. e5 {[%clk 0:02:02]}  Nc6 {[%clk 0:02:58]} 6. Qf4 {[%clk 0:01:52]}  Nh5 {[%clk 0:02:55]} 7. Qe4 {[%clk 0:01:52]}  Bg7 {[%clk 0:02:50]} 8. Nf3 {[%clk 0:01:46]}  O-O {[%clk 0:01:50]} 9. Be3 {[%clk 0:00:47]}  Qa5 {[%clk 0:01:22]} 10. g4 {[%clk 0:00:26]}  d5 {[%clk 0:01:20]} 11. Qxd5 {[%clk 0:00:20]}  Qxd5 {[%clk 0:01:03]} 12. Nxd5 {[%clk 0:00:20]}  Bxg4 {[%clk 0:01:04]} 13. Be2 {[%clk 0:00:18]}  Rfd8 {[%clk 0:00:47]} 14. O-O-O {[%clk 0:00:15]}  e6 {[%clk 0:00:40]} 15. Nc7 {[%clk 0:00:04]}  Rac8 {[%clk 0:00:37]} 16. Rxd8+ {[%clk 0:00:03]}  Rxd8 {[%clk 0:00:38]} 17. h3 {[%clk 0:00:03]}  Bf5 {[%clk 0:00:32]} 18. Nh4 {[%clk 0:00:03]}  Bxe5 {[%clk 0:00:27]} 19. Nb5 {[%clk 0:00:02]}  Nf4 {[%clk 0:00:25]} 20. Bf3 {[%clk 0:00:02]}  Nd5 {[%clk 0:00:17]} 21. Nxf5 {[%clk 0:00:01]}  exf5 {[%clk 0:00:16]} 22. Bxa7 {[%clk 0:00:01]}  Nxa7 {[%clk 0:00:07]} 23. Nxa7 {[%clk 0:00:02]}  Nb4 {[%clk 0:00:06]} 24. Nb5 {[%clk 0:00:03]}  Nxa2+ {[%clk 0:00:06]} 25. Kb1 {[%clk 0:00:04]}  Nb4 {[%clk 0:00:07]} 26. c3 {[%clk 0:00:03]}  Nd3 {[%clk 0:00:06]} 27. Bxb7 {[%clk 0:00:03]}  Nxf2 {[%clk 0:00:05]} 28. Re1 {[%clk 0:00:04]}  Bf6 {[%clk 0:00:05]} 29. Bc6 {[%clk 0:00:02]}  Rd2 {[%clk 0:00:02]} 30. Nc7 {[%clk 0:00:00]}  Nd3 {[%clk 0:00:03]} 0-1


[Site "https://www.chess.com"]